fUST/lending_fUST_20240508
["ID","MTS","AMOUNT","RATE_DAILY","PERIOD"]
[326609906,1715139039385,-500.0,0.00015171,2]
[326609908,1715139039395,-500.0,0.00015171,2]
[326609910,1715139039406,-500.0,0.00015171,2]
[326609912,1715139039416,-500.0,0.00015171,2]
[326609914,1715139039427,-500.0,0.00015171,2]
[326609916,1715139039438,-504.09094833,0.00015171,2]
[326609918,1715139039448,-503.63400595,0.00015171,2]
[326609920,1715139039459,-500.0,0.00015171,2]
[326609922,1715139039470,-1077.92,0.00015171,2]
[326609924,1715139039481,-504.60895779,0.00015171,2]
[326609926,1715139039491,-1194.0,0.00015171,2]
[326609928,1715139039502,-503.72955674,0.00015171,2]
[326609930,1715139039513,-461.15758938,0.00015171,2]
[326609932,1715139039524,-500.0,0.00015171,2]
[326609934,1715139039535,-154.75239617,0.00015172,2]
[326609936,1715139039547,-544.5285151,0.00015172,2]
[326609938,1715139039558,-316.2627358,0.00015172,2]
[326609940,1715139039569,-303.27625357,0.00015172,2]
[326609942,1715139039580,-500.0,0.00015172,2]
[326609944,1715139039590,-500.0,0.00015172,2]
[326609946,1715139039600,-500.76719521,0.00015172,2]
[326609948,1715139039610,-500.0,0.00015172,2]
[326609950,1715139039621,-500.0,0.00015172,2]
[326609951,1715139039631,-500.0,0.00015172,2]
[326609953,1715139039642,-929.24,0.00015172,2]
[326609955,1715139039652,-500.0,0.00015172,2]
[326609957,1715139039663,-500.0,0.00015172,2]
[326609959,1715139039673,-500.0,0.00015172,2]
[326609961,1715139039684,-267.33421667,0.00015172,2]
[326609963,1715139039694,-500.0,0.00015172,2]
[326609965,1715139039704,-500.0,0.00015172,2]
[326609967,1715139039716,-513.357965,0.00015172,2]
[326609969,1715139039727,-734.18,0.00015172,2]
[326609971,1715139039739,-918.25,0.00015172,2]
[326609973,1715139039749,-500.0,0.00015172,2]
[326609975,1715139039759,-500.0,0.00015172,2]
[326609977,1715139039770,-1890.82,0.00015172,2]
[326609979,1715139039781,-500.0,0.00015172,2]
[326609981,1715139039792,-500.0,0.00015172,2]
[326609983,1715139039803,-500.0,0.00015172,2]
[326609985,1715139039813,-500.0,0.00015172,2]
[326609987,1715139039824,-974.66,0.00015172,2]
[326609989,1715139039834,-561.87,0.00015172,2]
[326609991,1715139039844,-923.33,0.00015172,2]
[326609993,1715139039855,-1278.78,0.00015172,2]
[326609995,1715139039866,-500.0,0.00015172,2]
[326609997,1715139039876,-500.0,0.00015172,2]
[326609999,1715139039886,-11216.21,0.00015172,2]
[326610001,1715139039896,-500.0,0.00015172,2]
[326610003,1715139039906,-504.07902032,0.00015172,2]
[326610005,1715139039916,-500.0,0.00015172,2]
[326610007,1715139039927,-500.0,0.00015172,2]
[326610009,1715139039938,-1048.95,0.00015172,2]
[326610011,1715139039949,-1790.63,0.00015172,2]
[326610013,1715139039959,-644.94,0.00015172,2]
[326610015,1715139039969,-500.0,0.00015172,2]
[326610016,1715139039979,-2171.74,0.00015172,2]
[326610017,1715139039990,-3826.17,0.00015172,2]
[326610018,1715139040002,-500.0,0.00015172,2]
[326610019,1715139040014,-903.36,0.00015172,2]
[326610020,1715139040024,-500.0,0.00015172,2]
[326610021,1715139040035,-500.0,0.00015172,2]
[326610022,1715139040046,-1525.23,0.00015172,2]
[326610023,1715139040057,-500.0,0.00015172,2]
[326610024,1715139040068,-1869.63,0.00015172,2]
[326610025,1715139040078,-1815.46,0.00015172,2]
[326610026,1715139040090,-154.85607246,0.00015172,2]
[326610027,1715139040102,-1866.63,0.00015172,2]
[326610028,1715139040113,-500.0,0.00015172,2]
[326610029,1715139040123,-500.0,0.00015172,2]
[326610030,1715139040133,-504.00090539,0.00015172,2]
[326610032,1715139040144,-309.69631333,0.00015172,2]
[326610034,1715139040154,-500.0,0.00015172,2]
[326610036,1715139040165,-2860.24,0.00015172,2]
[326610038,1715139040176,-798.88,0.00015172,2]
[326610041,1715139040187,-508.79653634,0.00015172,2]
[326610043,1715139040198,-500.0,0.00015172,2]
[326610045,1715139040209,-501.02157809,0.00015172,2]
[326610047,1715139040219,-500.0,0.00015172,2]
[326610049,1715139040230,-503.10800664,0.00015172,2]
[326610051,1715139040240,-50676.36493857,0.00015173,2]
[326610053,1715139040250,-500.0,0.00015174,2]
[326610054,1715139040260,-265.83733156,0.00015174,2]
[326610056,1715139040271,-504.10349488,0.00015174,2]
[326610058,1715139040281,-312.97734818,0.00015174,2]
[326610060,1715139040292,-500.0,0.00015174,2]
[326610062,1715139040303,-497.22129951,0.00015174,2]
[326610064,1715139040315,-396.82341215,0.00015174,2]
[326610066,1715139040326,-500.0,0.00015174,2]
[326610069,1715139040336,-503.93481116,0.00015174,2]
[326610086,1715139040513,-172.15575758,0.00015174,2]
[326610088,1715139040524,-500.0,0.00015174,2]
[326610091,1715139040535,-500.0,0.00015174,2]
[326610093,1715139040546,-500.0,0.00015174,2]
[326610095,1715139040556,-506.63474687,0.00015174,2]
[326610097,1715139040569,-500.0,0.00015174,2]
[326610099,1715139040579,-503.8366194,0.00015174,2]
[326610101,1715139040590,-313.93071885,0.00015174,2]
[326610103,1715139040601,-739.06,0.00015174,2]
[326610105,1715139040611,-503.09128598,0.00015174,2]
[326610107,1715139040622,-500.0,0.00015174,2]
[326610109,1715139040632,-500.0,0.00015174,2]
[326610111,1715139040642,-501.65646852,0.00015174,2]
[326610113,1715139040653,-510.21530336,0.00015174,2]
[326610115,1715139040663,-500.0,0.00015174,2]
[326610117,1715139040673,-501.44075826,0.00015174,2]
[326610119,1715139040684,-500.0,0.00015174,2]
[326610121,1715139040694,-500.0,0.00015174,2]
[326610123,1715139040704,-273.01820624,0.00015174,2]
[326610125,1715139040715,-1161.53,0.00015174,2]
[326610127,1715139040724,-500.0,0.00015174,2]
[326610128,1715139040734,-500.0,0.00015174,2]
[326610130,1715139040745,-500.0,0.00015174,2]
[326610133,1715139040755,-514.09446684,0.00015174,2]
[326610135,1715139040766,-500.0,0.00015174,2]
[326610136,1715139040776,-500.89614398,0.00015174,2]
[326610138,1715139040787,-516.71220776,0.00015174,2]
[326610140,1715139040797,-500.0,0.00015174,2]
[326610142,1715139040808,-500.0,0.00015174,2]
[326610144,1715139040819,-501.44373547,0.00015174,2]
[326610146,1715139040829,-500.0,0.00015174,2]
[326610148,1715139040838,-501.27590992,0.00015174,2]
[326610150,1715139040848,-501.22403637,0.00015174,2]
[326610152,1715139040858,-500.0,0.00015174,2]
[326610154,1715139040868,-500.0,0.00015174,2]
[326610156,1715139040878,-500.0,0.00015174,2]
[326610158,1715139040889,-502.31678219,0.00015174,2]
[326610161,1715139040899,-500.0,0.00015174,2]
[326610163,1715139040909,-297.59484406,0.00015174,2]
[326610165,1715139040919,-500.0,0.00015174,2]
[326610167,1715139040929,-500.0,0.00015174,2]
[326610169,1715139040940,-500.0,0.00015174,2]
[326610171,1715139040950,-323.92383999,0.00015174,2]
[326610173,1715139040960,-500.52797849,0.00015174,2]
[326610175,1715139040970,-500.0,0.00015174,2]
[326610177,1715139040980,-485.58752744,0.00015174,2]
[326610179,1715139040990,-500.8145223,0.00015174,2]
[326610181,1715139041003,-501.99453995,0.00015174,2]
[326610182,1715139041012,-501.3256857,0.00015174,2]
[326610184,1715139041022,-501.80275205,0.00015174,2]
[326610186,1715139041032,-506.04989335,0.00015174,2]
[326610188,1715139041043,-500.0,0.00015174,2]
[326610191,1715139041053,-502.221224,0.00015174,2]
[326610193,1715139041063,-503.4661903,0.00015174,2]
[326610194,1715139041072,-196.33538884,0.00015174,2]
[326610196,1715139041083,-502.02516049,0.00015174,2]
[326610199,1715139041093,-500.0,0.00015174,2]
[326610201,1715139041102,-501.63976391,0.00015174,2]
[326610203,1715139041112,-502.23901325,0.00015174,2]
[326610205,1715139041122,-506.29563737,0.00015174,2]
[326610207,1715139041131,-501.12423204,0.00015174,2]
[326610209,1715139041141,-502.53696505,0.00015174,2]
[326610211,1715139041152,-501.05568121,0.00015174,2]
[326610213,1715139041162,-507.19128323,0.00015174,2]
[326610215,1715139041172,-503.20028029,0.00015174,2]
[326610217,1715139041182,-586.83716688,0.00015174,2]
[326610218,1715139041192,-157.09712412,0.00015174,2]
[326610220,1715139041202,-500.0,0.00015174,2]
[326610222,1715139041212,-500.0,0.00015174,2]
[326610225,1715139041223,-503.43868415,0.00015174,2]
[326610227,1715139041232,-502.08066567,0.00015174,2]
[326610229,1715139041243,-501.99045394,0.00015174,2]
[326610230,1715139041252,-502.8073248,0.00015174,2]
[326610233,1715139041262,-654.7,0.00015174,2]
[326610234,1715139041272,-505.81082302,0.00015174,2]
[326610236,1715139041283,-501.19286947,0.00015174,2]
[326610238,1715139041294,-500.0,0.00015174,2]
[326610240,1715139041305,-228.44170514,0.00015174,2]
[326610242,1715139041315,-500.0,0.00015174,2]
[326610244,1715139041325,-501.11946726,0.00015174,2]
[326610246,1715139041335,-624.7688326,0.00015174,2]
[326610248,1715139041346,-500.0,0.00015174,2]
[326610250,1715139041356,-504.5022126,0.00015174,2]
[326610253,1715139041366,-500.0,0.00015174,2]
[326610255,1715139041376,-502.13694979,0.00015174,2]
[326610257,1715139041386,-500.0,0.00015174,2]
[326610259,1715139041397,-500.0,0.00015174,2]
[326610261,1715139041408,-412.08463621,0.00015174,2]
[326610263,1715139041418,-502.02351516,0.00015175,2]
[326610265,1715139041428,-440.14223108,0.00015175,2]
[326610267,1715139041437,-500.0,0.00015175,2]
[326610268,1715139041447,-509.5482416,0.00015175,2]
[326610270,1715139041458,-572.53408447,0.00015175,2]
[326610272,1715139041468,-500.0,0.00015175,2]
[326610274,1715139041478,-501.28138295,0.00015175,2]
[326610277,1715139041489,-500.0,0.00015175,2]
[326610279,1715139041499,-500.0,0.00015175,2]
[326610281,1715139041509,-500.0,0.00015175,2]
[326610283,1715139041519,-500.95631335,0.00015175,2]
[326610285,1715139041530,-500.0,0.00015175,2]
[326610287,1715139041540,-500.0,0.00015175,2]
[326610289,1715139041549,-187.71000257,0.00015175,2]
[326610291,1715139041559,-500.0,0.00015175,2]
[326610293,1715139041570,-494.19497672,0.00015175,2]
[326610294,1715139041580,-500.0,0.00015175,2]
[326610297,1715139041590,-466.92584556,0.00015175,2]
[326610299,1715139041600,-502.05774901,0.00015175,2]
[326610301,1715139041610,-500.0,0.00015175,2]
[326610302,1715139041620,-152.15118119,0.00015175,2]
[326610304,1715139041631,-500.0,0.00015175,2]
[326610307,1715139041642,-505.61034041,0.00015175,2]
[326610308,1715139041652,-252.66240127,0.00015175,2]
[326610310,1715139041662,-500.0,0.00015175,2]
[326610312,1715139041672,-500.65388214,0.00015175,2]
[326610314,1715139041682,-500.76805601,0.00015175,2]
[326610316,1715139041692,-155.32436996,0.0001521,2]
[326610318,1715139041703,-155.32436996,0.00015278,2]
[326610320,1715139041712,-155.32436996,0.00015347,2]
[326610322,1715139041722,-435.07662337,0.00015347,2]
[326610324,1715139041732,-2927.24,0.00015445,2]
[326610326,1715139041743,-3348.31,0.00015445,2]
[326610328,1715139041754,-500.0,0.00015445,2]
[326610330,1715139041764,-500.0,0.00015445,2]
[326610332,1715139041774,-500.0,0.00015445,2]
[326610333,1715139041786,-500.0,0.00015445,2]
[326610335,1715139041796,-500.0,0.00015445,2]
[326610337,1715139041806,-500.0,0.00015445,2]
[326610339,1715139041816,-1077.92,0.00015445,2]
[326610340,1715139041826,-1194.0,0.00015445,2]
[326610342,1715139041837,-500.0,0.00015445,2]
[326610344,1715139041847,-3661.79883784,0.00015446,2]
[326610346,1715139041858,-500.0,0.00015446,2]
[326610350,1715139041869,-500.0,0.00015446,2]
[326610354,1715139041879,-500.0,0.00015446,2]
[326610357,1715139041890,-500.0,0.00015446,2]
[326610359,1715139041900,-929.24,0.00015446,2]
[326610361,1715139041910,-500.0,0.00015446,2]
[326610363,1715139041921,-500.0,0.00015446,2]
[326610365,1715139041933,-498.10818071,0.00015446,2]
[326610366,1715139041943,-734.18,0.00015446,2]
[326610368,1715139041954,-918.25,0.00015446,2]
[326610370,1715139041964,-500.0,0.00015446,2]
[326610372,1715139041975,-500.0,0.00015446,2]
[326610374,1715139041986,-1890.82,0.00015446,2]
[326610376,1715139041996,-500.0,0.00015446,2]
[326610377,1715139042010,-974.66,0.00015446,2]
[326610379,1715139042020,-561.87,0.00015446,2]
[326610381,1715139042030,-923.33,0.00015446,2]
[326610383,1715139042041,-1278.78,0.00015446,2]
[326610385,1715139042052,-500.0,0.00015446,2]
[326610386,1715139042062,-11216.21,0.00015446,2]
[326610388,1715139042072,-513.63529583,0.00015446,2]
[326610390,1715139042082,-500.0,0.00015446,2]
[326610392,1715139042093,-500.0,0.00015446,2]
[326610394,1715139042103,-1048.95,0.00015446,2]
[326610396,1715139042113,-1790.63,0.00015446,2]
[326610397,1715139042123,-644.94,0.00015446,2]
[326610399,1715139042132,-500.0,0.00015446,2]
[326610401,1715139042143,-2171.74,0.00015446,2]
[326610403,1715139042152,-3826.17,0.00015446,2]
[326610405,1715139042162,-903.36,0.00015446,2]
[326610406,1715139042172,-217.69931834,0.00015446,2]
[326610408,1715139042181,-1525.23,0.00015446,2]
[326610410,1715139042191,-500.0,0.00015446,2]
[326610412,1715139042202,-1869.63,0.00015446,2]
[326610414,1715139042213,-1815.46,0.00015446,2]
[326610416,1715139042223,-1866.63,0.00015446,2]
[326610418,1715139042232,-500.0,0.00015446,2]
[326610419,1715139042242,-500.0,0.00015446,2]
[326610421,1715139042252,-500.0,0.00015446,2]
[326610423,1715139042262,-2860.24,0.00015446,2]
[326610425,1715139042272,-798.88,0.00015446,2]
[326610427,1715139042282,-500.0,0.00015446,2]
[326610429,1715139042292,-500.0,0.00015446,2]
[326610431,1715139042302,-5883.6024627,0.00015447,2]
[326610433,1715139042311,-1060.87816916,0.00015447,2]
[326610435,1715139042322,-899.0893145,0.00015447,2]
[326610437,1715139042332,-2158.16581824,0.00015447,2]
[326610439,1715139042342,-309.70492923,0.00015447,2]
[326610440,1715139042351,-193.34132073,0.00015447,2]
[326610442,1715139042360,-781.25749037,0.00015447,2]
[326610444,1715139042370,-563.7194373,0.00015447,2]
[326610446,1715139042380,-1497.45148866,0.00015447,2]
[326610448,1715139042390,-500.44095848,0.00015448,2]
[326610450,1715139042400,-500.0,0.00015448,2]
[326610451,1715139042410,-500.0,0.00015448,2]
[326610453,1715139042420,-500.0,0.00015448,2]
[326610455,1715139042429,-739.06,0.00015448,2]
[326610457,1715139042439,-500.0,0.00015448,2]
[326610458,1715139042449,-500.0,0.00015448,2]
[326610460,1715139042458,-500.0,0.00015448,2]
[326610462,1715139042468,-1161.53,0.00015448,2]
[326610464,1715139042479,-500.0,0.00015448,2]
[326610466,1715139042488,-502.530519,0.00015448,2]
[326610468,1715139042498,-501.96826859,0.00015448,2]
[326610470,1715139042508,-500.0,0.00015448,2]
[326610472,1715139042518,-500.0,0.00015448,2]
[326610473,1715139042528,-500.0,0.00015448,2]
[326610475,1715139042538,-515.12890509,0.00015448,2]
[326610477,1715139042548,-501.35773235,0.00015448,2]
[326610479,1715139042558,-500.0,0.00015448,2]
[326610481,1715139042567,-503.65686392,0.00015448,2]
[326610483,1715139042579,-500.0,0.00015448,2]
[326610484,1715139042588,-502.68157883,0.00015448,2]
[326610486,1715139042598,-503.53530209,0.00015448,2]
[326610488,1715139042608,-500.0,0.00015448,2]
[326610490,1715139042618,-510.03184808,0.00015448,2]
[326610492,1715139042627,-244.61878013,0.00015448,2]
[326610493,1715139042637,-299.62798764,0.00015448,2]
[326610495,1715139042648,-654.7,0.00015448,2]
[326610497,1715139042658,-573.36515402,0.00015448,2]
[326610499,1715139042668,-151.0,0.00015448,2]
[326610501,1715139042678,-151.0,0.00015448,2]
[326610503,1715139042688,-505.27509672,0.00015448,2]
[326610505,1715139042698,-151.0,0.00015448,2]
[326610507,1715139042708,-151.0,0.00015448,2]
[326610509,1715139042718,-500.0,0.00015448,2]
[326610510,1715139042729,-505.08778106,0.00015448,2]
[326610512,1715139042740,-500.0,0.00015448,2]
[326610514,1715139042750,-500.0,0.00015448,2]
[326610516,1715139042760,-152.288094,0.00015448,2]
[326610518,1715139042770,-500.0,0.00015449,2]
[326610520,1715139042780,-500.0,0.00015449,2]
[326610522,1715139042791,-500.0,0.00015449,2]
[326610524,1715139042800,-500.0,0.00015449,2]
[326610526,1715139042810,-500.0,0.00015449,2]
[326610528,1715139042820,-500.53904699,0.00015449,2]
[326610530,1715139042830,-306.0,0.000155,2]
[326610531,1715139042840,-151.0,0.000155,2]
[326610533,1715139042849,-153.0,0.000155,2]
[326610535,1715139042859,-162.24108995,0.00015567,2]
[326610537,1715139042870,-2000.0,0.00015622,2]
[326610539,1715139042880,-294.9154708,0.000157,5]
[326610541,1715139042890,-30367.44636923,0.000157,2]
[326610563,1715139043125,-501.78127875,0.00015171,2]
[326610565,1715139043140,-500.0,0.00015171,2]
[326610566,1715139043150,-266.3228388,0.00015445,2]
[326610568,1715139043160,-1475.17720685,0.000157,2]
[326610570,1715139043171,-1331.94426912,0.000157,2]
[326610853,1715139046267,-500.0,0.00015171,2]
[326610855,1715139046277,-846.39,0.00015172,2]
[326610857,1715139046286,-500.0,0.00015174,2]
[326610858,1715139046295,-500.0,0.00015445,2]
[326610860,1715139046305,-846.39,0.00015446,2]
[326610862,1715139046315,-356.5769314,0.000157,2]
[326610864,1715139046326,-22023.8552234,0.000157,2]
[326610866,1715139046336,-151.0,0.000157,2]
[326610868,1715139046345,-299.627829,0.000157,2]
[326610870,1715139046355,-2927.24,0.00015719,2]
[326610872,1715139046364,-3348.31,0.00015719,2]
[326610873,1715139046373,-500.0,0.00015719,2]
[326610874,1715139046383,-500.0,0.00015719,2]
[326610876,1715139046392,-500.0,0.00015719,2]
[326610878,1715139046402,-500.0,0.00015719,2]
[326610880,1715139046411,-500.0,0.00015719,2]
[326610882,1715139046420,-1077.92,0.00015719,2]
[326610884,1715139046430,-1194.0,0.00015719,2]
[326610886,1715139046439,-500.0,0.00015719,2]
[326610888,1715139046448,-500.0,0.00015719,2]
[326610890,1715139046457,-500.0,0.0001572,2]
[326610892,1715139046467,-500.0,0.0001572,2]
[326610893,1715139046476,-500.0,0.0001572,2]
[326610895,1715139046485,-500.0,0.0001572,2]
[326610897,1715139046495,-929.24,0.0001572,2]
[326610898,1715139046504,-500.0,0.0001572,2]
[326610899,1715139046514,-500.0,0.0001572,2]
[326610900,1715139046523,-918.25,0.0001572,2]
[326610901,1715139046534,-500.0,0.0001572,2]
[326610902,1715139046544,-151.0,0.0001572,2]
[326610903,1715139046554,-153.751302,0.0001572,2]
[326610904,1715139046563,-1890.82,0.0001572,2]
[326610905,1715139046573,-438.61248861,0.0001572,2]
[326610906,1715139046583,-974.66,0.0001572,2]
[326610907,1715139046592,-561.87,0.0001572,2]
[326610908,1715139046602,-1278.78,0.0001572,2]
[326610909,1715139046612,-500.0,0.0001572,2]
[326610910,1715139046621,-11216.21,0.0001572,2]
[326610911,1715139046631,-500.0,0.0001572,2]
[326610912,1715139046640,-500.0,0.0001572,2]
[326610913,1715139046649,-1048.95,0.0001572,2]
[326610914,1715139046659,-151.0,0.0001572,2]
[326610915,1715139046669,-158.807604,0.0001572,2]
[326610916,1715139046679,-1790.63,0.0001572,2]
[326610917,1715139046688,-644.94,0.0001572,2]
[326610918,1715139046698,-500.0,0.0001572,2]
[326610919,1715139046707,-2171.74,0.0001572,2]
[326610920,1715139046717,-3826.17,0.0001572,2]
[326610921,1715139046726,-151.0,0.0001572,2]
[326610922,1715139046736,-903.36,0.0001572,2]
[326610923,1715139046745,-1525.23,0.0001572,2]
[326610924,1715139046755,-500.0,0.0001572,2]
[326610925,1715139046764,-1869.63,0.0001572,2]
[326610926,1715139046773,-1815.46,0.0001572,2]
[326610927,1715139046783,-1866.63,0.0001572,2]
[326610928,1715139046793,-638.93318085,0.0001572,2]
[326610929,1715139046802,-500.0,0.0001572,2]
[326610930,1715139046812,-500.0,0.0001572,2]
[326610931,1715139046821,-2860.24,0.0001572,2]
[326610932,1715139046831,-798.88,0.0001572,2]
[326610933,1715139046841,-500.0,0.0001572,2]
[326610934,1715139046850,-500.0,0.0001572,2]
[326610935,1715139046859,-846.39,0.0001572,2]
[326610936,1715139046869,-910.29210747,0.00015721,2]
[326610937,1715139046878,-201.26803244,0.00015721,2]
[326610938,1715139046888,-155.1005922,0.00015721,2]
[326610939,1715139046898,-291.89767916,0.00015721,2]
[326610940,1715139046907,-1627.07080808,0.00015721,2]
[326610941,1715139046916,-1057.88956582,0.00015721,2]
[326610942,1715139046925,-207.04612451,0.00015721,2]
[326610943,1715139046935,-275.69316102,0.00015721,2]
[326610944,1715139046944,-152.736736,0.00015722,2]
[326610945,1715139046954,-500.0,0.00015722,2]
[326610946,1715139046963,-500.0,0.00015722,2]
[326610947,1715139046972,-500.0,0.00015722,2]
[326610948,1715139046982,-739.06,0.00015722,2]
[326610949,1715139046991,-500.0,0.00015722,2]
[326610950,1715139047002,-500.0,0.00015722,2]
[326610951,1715139047014,-500.0,0.00015722,2]
[326610952,1715139047023,-151.0,0.00015722,2]
[326610953,1715139047033,-151.0,0.00015722,2]
[326610954,1715139047043,-151.0,0.00015722,2]
[326610955,1715139047052,-1161.53,0.00015722,2]
[326610956,1715139047187,-500.0,0.00015722,2]
[326610957,1715139047197,-151.0,0.00015722,2]
[326610958,1715139047206,-151.0,0.00015722,2]
[326610959,1715139047215,-500.0,0.00015722,2]
[326610960,1715139047225,-500.0,0.00015722,2]
[326610961,1715139047234,-500.0,0.00015722,2]
[326610962,1715139047243,-500.0,0.00015722,2]
[326610963,1715139047253,-151.0,0.00015722,2]
[326610964,1715139047262,-654.7,0.00015722,2]
[326610965,1715139047272,-214.018392,0.00015722,2]
[326610966,1715139047281,-500.0,0.00015722,2]
[326610967,1715139047291,-500.0,0.00015722,2]
[326610968,1715139047301,-500.0,0.00015722,2]
[326610969,1715139047310,-500.0,0.00015723,2]
[326610970,1715139047319,-500.0,0.00015723,2]
[326610971,1715139047329,-500.0,0.00015723,2]
[326610972,1715139047338,-500.0,0.00015723,2]
[326610973,1715139047347,-155.14890182,0.00015739,2]
[326610974,1715139047356,-155.76995916,0.00015739,2]
[326610975,1715139047366,-153.0,0.000158,2]
[326610976,1715139047375,-153.0,0.000158,2]
[326610977,1715139047384,-166.901206,0.0001589,2]
[326610978,1715139047393,-168.476235,0.0001589,2]
[326610979,1715139047402,-328.10656,0.0001589,2]
[326610980,1715139047411,-174.67062,0.0001589,2]
[326610981,1715139047420,-292.563894,0.0001589,2]
[326610982,1715139047429,-151.0,0.00015896,2]
[326610983,1715139047439,-151.0,0.00015896,2]
[326610984,1715139047448,-1014.32814764,0.00015938,2]
[326610985,1715139047458,-2927.24,0.00015993,2]
[326610986,1715139047467,-3348.31,0.00015993,2]
[326610987,1715139047477,-385.04106683,0.00015993,2]
[326610988,1715139047486,-500.0,0.00015993,2]
[326610989,1715139047495,-500.0,0.00015993,2]
[326610990,1715139047504,-500.0,0.00015993,2]
[326610991,1715139047513,-500.0,0.00015993,2]
[326610992,1715139047522,-1077.92,0.00015993,2]
[326610993,1715139047532,-1194.0,0.00015993,2]
[326610994,1715139047543,-500.0,0.00015993,2]
[326610995,1715139047552,-500.0,0.00015993,2]
[326610996,1715139047561,-500.0,0.00015994,2]
[326610997,1715139047573,-500.0,0.00015994,2]
[326610998,1715139047583,-500.0,0.00015994,2]
[326610999,1715139047592,-500.0,0.00015994,2]
[326611000,1715139047602,-929.24,0.00015994,2]
[326611001,1715139047611,-500.0,0.00015994,2]
[326611002,1715139047620,-500.0,0.00015994,2]
[326611003,1715139047630,-918.25,0.00015994,2]
[326611004,1715139047640,-500.0,0.00015994,2]
[326611005,1715139047649,-1890.82,0.00015994,2]
[326611006,1715139047659,-974.66,0.00015994,2]
[326611007,1715139047668,-561.87,0.00015994,2]
[326611008,1715139047677,-1278.78,0.00015994,2]
[326611009,1715139047687,-500.0,0.00015994,2]
[326611010,1715139047696,-11216.21,0.00015994,2]
[326611011,1715139047706,-500.0,0.00015994,2]
[326611012,1715139047715,-500.0,0.00015994,2]
[326611013,1715139047724,-1048.95,0.00015994,2]
[326611014,1715139047734,-1790.63,0.00015994,2]
[326611015,1715139047744,-644.94,0.00015994,2]
[326611016,1715139047754,-500.0,0.00015994,2]
[326611017,1715139047763,-2171.74,0.00015994,2]
[326611018,1715139047773,-3826.17,0.00015994,2]
[326611019,1715139047783,-151.0,0.00015994,2]
[326611020,1715139047792,-903.36,0.00015994,2]
[326611021,1715139047802,-1525.23,0.00015994,2]
[326611022,1715139047812,-500.0,0.00015994,2]
[326611023,1715139047821,-1869.63,0.00015994,2]
[326611024,1715139047832,-1815.46,0.00015994,2]
[326611025,1715139047841,-1866.63,0.00015994,2]
[326611026,1715139047850,-500.0,0.00015994,2]
[326611027,1715139047859,-500.0,0.00015994,2]
[326611028,1715139047869,-2860.24,0.00015994,2]
[326611029,1715139047879,-798.88,0.00015994,2]
[326611030,1715139047889,-500.0,0.00015994,2]
[326611031,1715139047898,-500.0,0.00015994,2]
[326611032,1715139047908,-846.39,0.00015994,2]
[326611033,1715139047918,-500.0,0.00015996,2]
[326611034,1715139047928,-500.0,0.00015996,2]
[326611035,1715139047937,-500.0,0.00015996,2]
[326611036,1715139047946,-739.06,0.00015996,2]
[326611037,1715139047955,-500.0,0.00015996,2]
[326611038,1715139047965,-500.0,0.00015996,2]
[326611039,1715139047975,-500.0,0.00015996,2]
[326611040,1715139047984,-151.0,0.00015996,2]
[326611041,1715139047993,-1161.53,0.00015996,2]
[326611042,1715139048006,-500.0,0.00015996,2]
[326611043,1715139048015,-306.73842323,0.00015996,2]